bitfinex/quotes_SOLUSD_20250107
["timestamp","ask_amount","ask_price","bid_price","bid_amount"]
[1736263868005,20.0,209.28,209.03,23.776884]
[1736263868331,20.0,209.28,209.0,0.12549]
[1736263868332,5.0,209.25,209.0,39.43261877]
[1736263868546,25.0,209.22,209.0,0.12549]
[1736263868743,30.0,209.22,209.0,0.12549]
[1736263868914,30.0,209.22,208.95,39.30712877]
[1736263869338,30.0,209.22,208.92,39.30712877]
[1736263869644,30.0,209.22,208.93,23.902374]
[1736263869798,20.0,209.13,208.85,11.9698]
[1736263870107,5.0,209.14,208.83,46.22712877]
[1736263870108,20.0,209.11,208.83,46.22712877]
[1736263870303,20.0,209.11,208.85,39.30712877]
[1736263870536,5.0,209.18,208.9,39.30712877]
[1736263870702,5.0,209.21,208.95,39.30712877]
[1736263870910,5.0,209.22,208.97,39.43261877]
[1736263871099,20.0,209.22,208.99,0.12549]
[1736263871303,5.0,209.22,208.99,0.12549]
[1736263871536,20.0,209.24,208.99,0.12549]
[1736263871739,5.0,209.24,208.91,0.7175686]
[1736263871941,5.0,209.21,208.92,39.30712877]
[1736263872117,20.0,209.22,208.97,39.30712877]
[1736263872334,20.0,209.22,208.95,39.30712877]
[1736263872530,5.0,209.23,208.95,23.902374]
[1736263872702,5.0,209.22,208.95,0.12549]
[1736263872905,5.0,209.19,208.89,39.30712877]
[1736263873121,20.0,209.17,208.92,39.30712877]
[1736263873319,20.0,209.17,208.96,23.902374]
[1736263873742,6.91262836,209.24,208.98,0.12549]
[1736263873950,5.0,209.22,208.93,39.30712877]
[1736263874115,25.0,209.19,208.88,39.30712877]
[1736263874320,20.0,209.06,208.89,3.5058]
[1736263874634,3.537,209.05,208.88,6.84]
[1736263875440,3.537,209.05,208.91,39.30712877]
[1736263875645,3.537,209.05,208.98,39.30712877]
[1736263875810,3.537,209.05,209.0,39.43261877]
[1736263876009,3.537,209.05,209.01,0.12549]
[1736263876211,3.537,209.05,209.01,39.43261877]
[1736263876525,20.0,209.06,209.03,39.43261877]
[1736263876841,20.0,209.06,209.03,0.12549]
[1736263877015,20.0,209.06,209.02,0.12549]
[1736263877534,20.0,209.06,208.97,63.20950277]
[1736263877713,20.0,209.06,209.01,0.12549]
[1736263878200,20.0,209.06,208.99,23.776884]
[1736263878408,3.6533,209.11,208.95,0.71747588]
[1736263878623,3.6533,209.11,208.93,46.14712877]
[1736263878842,23.6533,209.11,208.95,23.902374]
[1736263879037,3.6533,209.11,208.95,63.20950277]
[1736263879223,3.6533,209.11,208.97,23.902374]
[1736263879548,3.6533,209.11,208.99,23.902374]
[1736263879905,3.6533,209.11,208.93,46.14712877]
[1736263880105,23.6533,209.11,208.93,6.84]
[1736263880343,23.6533,209.11,208.9,39.30712877]
[1736263880552,23.6533,209.11,208.91,46.14712877]
[1736263881246,23.6533,209.11,208.92,23.902374]
[1736263881440,23.6533,209.11,208.98,23.902374]
[1736263881749,3.6533,209.11,209.01,23.902374]
[1736263881913,3.6533,209.11,209.03,0.12549]
[1736263882348,3.6533,209.11,208.97,39.30712877]
[1736263882648,3.6533,209.11,208.91,46.14712877]
[1736263882806,23.6533,209.11,208.88,52.73389811]
[1736263883009,12.444,209.05,208.84,40.02486338]
[1736263883317,3.3548,209.01,208.84,6.84]
[1736263883521,3.3548,209.01,208.81,39.30712877]
[1736263883730,3.3548,209.01,208.82,6.84]
[1736263883938,20.0,208.97,208.79,41.93067325]
[1736263884146,20.0,208.97,208.8,6.84]
[1736263884332,3.3151,208.96,208.8,6.84]
[1736263884656,3.3151,208.96,208.79,0.69327784]
[1736263885054,3.3151,208.96,208.8,39.30712877]
[1736263885210,3.3151,208.96,208.79,0.69327784]
[1736263886318,20.0,208.92,208.79,0.69327784]
[1736263886741,3.3432,208.91,208.72,43.08]
[1736263887048,3.3432,208.91,208.77,39.30712877]
[1736263887217,3.3432,208.91,208.8,39.43261877]
[1736263887548,3.3432,208.91,208.83,0.12549]
[1736263888030,3.3432,208.91,208.81,39.30712877]
[1736263888232,3.3432,208.91,208.84,39.43261877]
[1736263888418,3.3432,208.91,208.88,39.43261877]
[1736263888634,12.0153,208.95,208.9,0.12549]
[1736263889049,12.0153,208.95,208.84,39.30712877]
[1736263889342,20.0,208.92,208.82,23.902374]
[1736263889775,20.0,208.92,208.82,0.12549]
[1736263890148,20.0,208.92,208.85,63.20950277]
[1736263890346,20.0,208.92,208.88,0.12549]
[1736263890546,12.0153,208.95,208.9,0.12549]
[1736263890868,12.953,209.01,208.94,39.43261877]
[1736263891082,3.3694,209.04,209.01,0.12549]
[1736263891251,5.0,209.28,209.03,39.43261877]
[1736263891432,3.3694,209.11,209.06,39.43261877]
[1736263891635,3.3694,209.11,209.06,0.12549]
[1736263891828,3.3694,209.11,208.95,39.30712877]
[1736263892067,3.3694,209.11,208.91,0.71745924]
[1736263892068,20.0,209.1,208.91,39.30712877]
[1736263892261,20.0,209.1,208.95,39.30712877]
[1736263892462,20.0,209.1,208.96,0.12549]
[1736263892844,20.0,209.1,208.92,39.30712877]
[1736263893069,20.0,209.13,208.87,39.30712877]
[1736263893237,20.0,209.04,208.87,39.30712877]
[1736263893568,20.0,209.04,208.86,46.16712877]
[1736263893744,3.5431,209.03,208.86,6.86]
[1736263893944,20.0,208.99,208.83,39.30712877]
[1736263894273,3.5431,208.98,208.82,39.30712877]
[1736263894576,3.5431,208.98,208.81,39.30712877]
[1736263894734,20.0,208.97,208.82,39.30712877]
[1736263895755,3.5431,208.98,208.83,39.30712877]
[1736263896081,23.5431,208.98,208.85,39.30712877]
[1736263896308,23.5431,208.98,208.86,63.20950277]
[1736263896460,3.5431,208.98,208.86,63.20950277]
[1736263896973,3.5431,208.98,208.82,39.30712877]
[1736263897167,3.5431,208.98,208.83,39.30712877]
[1736263897496,3.5431,208.98,208.91,0.12549]
[1736263898068,3.5431,208.98,208.81,39.30712877]
[1736263898495,3.5431,208.98,208.82,23.902374]
[1736263898700,3.5431,208.98,208.8,39.30712877]
[1736263898906,13.3039,208.97,208.76,39.30712877]
[1736263899197,3.6142,208.93,208.74,39.30712877]
[1736263899397,3.6142,208.93,208.75,39.30712877]
[1736263899762,3.6142,208.93,208.74,39.30712877]
[1736263899961,3.6142,208.93,208.75,39.30712877]
[1736263900400,20.0,208.89,208.73,39.30712877]
[1736263900561,20.0,208.84,208.71,7.39281949]
[1736263900982,20.0,208.84,208.73,0.12549]
[1736263901385,19.8746,208.84,208.77,0.12549]
[1736263901708,19.8746,208.84,208.78,0.12549]
[1736263902013,19.8746,208.84,208.72,0.15]
[1736263902316,19.8746,208.84,208.75,39.30712877]
[1736263902806,19.8746,208.84,208.78,39.30712877]
[1736263903095,19.7492,208.84,208.82,0.12549]
[1736263903413,3.622,208.88,208.85,0.12549]
[1736263903711,12.196,208.93,208.88,0.27549]
[1736263904009,3.3317,208.95,208.93,0.12549]
[1736263904315,3.3317,208.95,208.94,39.43261877]
[1736263904516,12.4018,208.98,208.95,0.12549]
[1736263904680,12.4018,208.98,208.93,39.30712877]
[1736263904881,12.4018,208.98,208.93,0.12549]
[1736263905311,12.4018,208.98,208.95,0.12549]
[1736263905619,3.3908,209.01,208.98,0.12549]
[1736263906207,3.3908,209.01,208.99,0.12549]
[1736263906899,0.12549,209.0,208.91,39.30712877]
[1736263907099,0.12549,209.0,208.9,39.30712877]
[1736263907439,3.2654,209.01,208.95,0.12549]
[1736263908020,3.2654,209.01,208.88,0.15]
[1736263908395,3.2654,209.01,208.89,0.12549]
[1736263908597,0.12549,208.96,208.89,0.12549]
[1736263909395,0.12549,208.96,208.88,0.15]
[1736263910110,20.0,208.97,208.88,0.15]
[1736263910111,19.8746,208.97,208.88,0.15]
[1736263910284,3.3406,208.96,208.88,0.15]
[1736263911089,3.3406,208.96,208.79,43.12]
[1736263911294,3.6636,208.93,208.73,39.30712877]
[1736263911734,3.6636,208.93,208.76,46.08712877]
[1736263912024,20.0,208.92,208.79,0.12549]
[1736263912492,20.0,208.92,208.77,0.12549]
[1736263913085,20.0,208.92,208.77,0.27549]
[1736263913320,20.0,208.92,208.77,39.58261877]
[1736263913526,20.0,208.92,208.78,39.30712877]
[1736263913824,20.0,208.92,208.77,0.15]
[1736263913825,20.0,208.92,208.81,0.12549]
[1736263914130,3.6636,208.93,208.84,0.12549]
[1736263914320,3.6636,208.93,208.87,0.12549]
[1736263914491,3.6636,208.93,208.89,0.12549]
[1736263914693,3.6636,208.93,208.92,39.43261877]
[1736263914949,3.6636,208.93,208.92,0.12549]
[1736263915120,3.78909,208.93,208.92,0.12549]
[1736263915309,3.6636,208.93,208.92,0.12549]
[1736263915715,3.5382,208.93,208.92,0.12549]
[1736263916601,13.3218,209.08,208.93,0.12549]
[1736263916800,13.3218,209.08,208.95,0.12549]
[1736263917216,0.12549,209.07,208.95,0.12549]
[1736263917449,13.3218,209.08,208.91,6.93]
[1736263917450,0.12549,209.04,208.91,6.93]
[1736263917628,12.4253,209.03,208.91,6.93]
[1736263917797,0.12549,208.99,208.91,0.15]
[1736263918496,0.12549,208.99,208.92,0.12549]
[1736263918739,0.12549,208.97,208.92,0.12549]
[1736263919547,3.4108,208.98,208.92,0.12549]
[1736263920033,0.12549,208.93,208.75,39.30712877]
[1736263920207,0.12549,208.88,208.73,39.30712877]
[1736263920410,0.12549,208.88,208.76,39.30712877]
[1736263920631,0.12549,208.88,208.74,39.30712877]
[1736263920837,0.12549,208.88,208.83,39.30712877]
[1736263921047,0.12549,208.88,208.81,39.30712877]
[1736263921209,19.8746,208.89,208.83,39.30712877]
[1736263921639,19.8746,208.89,208.82,39.30712877]
[1736263922027,19.8746,208.89,208.88,0.12549]
[1736263922228,13.1558,208.92,208.88,0.12549]
[1736263922424,3.2608,208.95,208.88,0.12549]
[1736263922629,3.2608,208.95,208.93,0.12549]
[1736263922952,16.0503,209.08,208.93,39.43261877]
[1736263923149,16.0503,209.08,208.9,23.776884]
[1736263923313,16.0503,209.08,208.99,0.12549]
[1736263923742,20.0,209.05,208.88,39.30712877]
[1736263923936,0.12549,209.04,208.87,0.15]
[1736263924142,0.12549,209.04,208.88,39.43261877]
[1736263924355,0.12549,209.04,208.88,0.12549]
[1736263924730,0.12549,208.98,208.88,0.12549]
[1736263924927,20.0,208.93,208.88,0.12549]
[1736263925323,0.12549,208.92,208.88,0.12549]
[1736263925552,0.12549,208.92,208.88,39.43261877]
[1736263925757,20.0,208.93,208.9,39.30712877]
[1736263925961,0.12549,208.92,208.87,39.45712877]
[1736263926114,0.12549,208.92,208.88,0.12549]
[1736263926319,0.12549,208.92,208.89,39.30712877]
[1736263926620,0.12549,208.92,208.9,39.30712877]
[1736263926847,3.2415,208.97,208.91,0.12549]
[1736263927022,0.12549,208.96,208.91,0.12549]
[1736263927223,0.12549,208.96,208.87,0.15]
[1736263927852,0.12549,208.96,208.88,0.12549]
[1736263928337,0.12549,208.96,208.87,0.15]
[1736263928739,20.0,208.92,208.87,0.15]
[1736263928918,20.0,208.92,208.74,39.30712877]
[1736263929256,20.0,208.92,208.72,7.39281949]
[1736263929257,3.5445,208.91,208.72,39.30712877]
[1736263929434,3.5445,208.91,208.73,39.30712877]
[1736263929635,3.5445,208.91,208.74,23.902374]
[1736263929857,3.5445,208.91,208.7,0.71833937]
[1736263929858,3.5445,208.91,208.72,39.30712877]
[1736263930156,20.0,208.8,208.6,72.69127796]
[1736263930319,0.12549,208.79,208.62,54.09276775]
[1736263930519,0.12549,208.79,208.63,0.70207921]
[1736263930743,0.12549,208.79,208.7,0.15]
[1736263930931,0.12549,208.77,208.61,7.39281949]
[1736263931154,0.12549,208.71,208.61,7.39281949]
[1736263931452,0.12549,208.71,208.53,39.30712877]
[1736263931814,0.12549,208.71,208.52,39.30712877]
[1736263932126,0.12549,208.69,208.49,39.30712877]
[1736263932492,12.6047,208.68,208.58,39.30712877]
[1736263932627,12.6047,208.68,208.6,39.30712877]
[1736263932822,12.6047,208.68,208.61,39.43261877]
[1736263932823,20.0,208.65,208.61,39.43261877]
[1736263933042,3.4922,208.7,208.63,39.30712877]
[1736263933257,3.4922,208.7,208.65,39.30712877]
[1736263933543,12.6047,208.75,208.65,39.30712877]
[1736263933766,0.12549,208.74,208.65,39.30712877]
[1736263933932,12.6047,208.75,208.64,39.30712877]
[1736263934136,20.0,208.72,208.64,39.30712877]
[1736263934331,0.12549,208.71,208.6,6.72]
[1736263934541,0.12549,208.71,208.55,39.30712877]
[1736263934830,20.0,208.72,208.57,39.30712877]
[1736263935139,20.0,208.72,208.56,39.30712877]
[1736263935454,20.0,208.72,208.54,39.30712877]
[1736263935622,20.0,208.72,208.55,39.30712877]
[1736263936019,20.0,208.72,208.59,39.43261877]
[1736263936250,12.6047,208.75,208.67,39.30712877]
[1736263936419,3.4922,208.77,208.69,39.30712877]
[1736263936619,3.4922,208.77,208.68,39.30712877]
[1736263937053,3.4922,208.77,208.7,39.30712877]
[1736263937262,3.4922,208.77,208.71,0.12549]
[1736263937471,0.12549,208.76,208.71,0.12549]
[1736263937680,0.12549,208.76,208.6,39.30712877]
[1736263937974,0.12549,208.76,208.64,0.12549]
[1736263938678,20.12549,208.76,208.55,39.30712877]
[1736263938878,20.12549,208.76,208.57,39.30712877]
[1736263939086,0.12549,208.76,208.61,39.30712877]
[1736263939382,3.4922,208.77,208.65,0.12549]
[1736263940048,3.4922,208.77,208.62,0.12549]
[1736263940249,3.4922,208.77,208.57,39.30712877]
[1736263940468,3.4922,208.77,208.62,39.30712877]
[1736263940678,3.4922,208.77,208.67,0.12549]
[1736263940872,3.4922,208.77,208.68,0.12549]
[1736263941189,3.4922,208.77,208.68,39.30712877]
[1736263941486,3.4922,208.77,208.62,39.30712877]
[1736263941672,3.4922,208.77,208.64,0.12549]
[1736263941877,3.4922,208.77,208.65,0.12549]
[1736263942382,3.4922,208.77,208.66,39.30712877]
[1736263942595,3.4922,208.77,208.7,39.30712877]
[1736263942761,12.9418,208.81,208.76,39.30712877]
[1736263942964,3.3612,208.84,208.77,39.43261877]
[1736263943290,3.3612,208.84,208.81,0.12549]
[1736263943493,12.0368,208.88,208.87,0.27549]
[1736263943984,12.16229,208.88,208.87,0.27549]
[1736263944193,12.0368,208.88,208.87,0.27549]
[1736263944368,3.2752,208.91,208.87,0.15]
[1736263944558,15.312,209.07,208.88,39.30712877]
[1736263944752,15.312,209.07,208.92,39.30712877]
[1736263944955,15.312,209.07,208.97,0.12549]
[1736263945187,15.312,209.07,208.99,0.12549]
[1736263945486,3.2752,209.07,209.02,39.30712877]
[1736263945649,29.69086657,209.16,209.06,39.30712877]
[1736263946089,12.0368,209.16,209.05,39.30712877]
[1736263946587,12.0368,209.16,209.04,39.30712877]
[1736263946949,12.0368,209.16,209.0,0.71739769]
[1736263947153,20.0,208.92,208.83,7.39281949]
[1736263947657,25.0,208.94,208.83,7.39281949]
[1736263947880,14.785639,208.92,208.75,8.11103677]
[1736263948090,14.785639,208.92,208.77,39.30712877]
[1736263948258,14.785639,208.92,208.78,0.71805086]
[1736263949182,14.785639,208.92,208.79,0.12549]
[1736263949561,20.0,208.94,208.8,0.71810589]
[1736263949782,39.172369,208.94,208.76,0.71801977]
[1736263950094,20.0,208.91,208.77,23.902374]
[1736263950254,20.0,208.91,208.77,0.12549]
[1736263950586,20.0,208.91,208.77,0.71824775]
[1736263950786,20.0,208.91,208.77,40.02537652]
[1736263950960,12.4758,208.97,208.78,23.902374]
[1736263951162,20.0,208.93,208.85,39.30712877]
[1736263951371,20.0,208.93,208.85,0.71791352]
[1736263951690,2.881,208.99,208.89,63.20950277]
[1736263951850,2.881,208.99,208.91,0.12549]
[1736263952046,2.881,208.99,208.85,46.02712877]
[1736263952272,19.165121,209.01,208.89,63.20950277]
[1736263952475,10.9888,209.07,208.89,63.20950277]
[1736263952476,20.0,209.04,208.93,23.902374]
[1736263952707,10.9888,209.07,208.95,23.902374]
[1736263952895,2.741,209.08,208.97,23.776884]
[1736263953095,0.12549,209.07,208.98,0.71738543]
[1736263953513,2.741,209.08,208.98,0.71738543]
[1736263953808,2.741,209.08,208.99,63.08401277]
[1736263953984,0.12549,209.07,209.0,7.43731395]
[1736263954183,0.12549,209.07,209.0,6.72]
[1736263954384,0.12549,209.1,208.93,6.72]
[1736263954600,20.0,209.04,208.93,6.72]
[1736263954789,20.0,209.04,208.94,23.776884]
[1736263955216,0.12549,209.03,208.94,23.776884]
[1736263955395,0.12549,209.03,208.93,0.71753862]
[1736263955596,5.0,209.14,208.84,10.7805]
[1736263955597,7.8793,209.18,208.96,39.30712877]
[1736263955805,20.0,209.13,208.97,23.776884]
[1736263955995,0.12549,209.1,208.96,0.71744664]
[1736263956307,0.12549,209.1,208.95,0.12549]
[1736263956495,0.12549,209.1,208.97,0.12549]
[1736263956694,20.0,209.13,208.94,6.72]
[1736263956695,5.0,209.13,208.94,6.72]
[1736263956907,20.0,209.13,208.95,0.71754715]
[1736263957093,0.12549,209.06,208.96,23.902374]
[1736263957287,0.12549,209.06,208.95,0.71754715]
[1736263957490,0.12549,209.06,208.99,39.30712877]
[1736263957715,10.7707,209.16,209.01,63.20950277]
[1736263957916,6.72,209.14,209.03,23.902374]
[1736263958217,5.0,209.23,209.05,0.12549]
[1736263958520,0.12549,209.16,208.99,0.71721227]
[1736263958893,20.12549,209.12,208.92,0.71733039]
[1736263959093,20.12549,209.12,208.93,6.66]
[1736263959288,20.12549,209.12,208.93,45.96712877]
[1736263959498,20.12549,209.12,208.93,6.66]
[1736263960111,20.12549,209.12,208.94,0.12549]
[1736263960511,20.12549,209.12,208.94,23.902374]
[1736263960817,20.12549,209.12,208.96,63.20950277]
[1736263960993,20.12549,209.12,208.96,0.12549]
[1736263961190,20.12549,209.12,208.93,6.66]
[1736263961191,0.12549,209.11,208.93,6.66]
[1736263961525,20.12549,209.11,208.92,23.902374]
[1736263961712,20.12549,209.11,208.92,0.12549]
[1736263961892,0.12549,209.08,208.92,0.12549]
[1736263962218,0.12549,208.99,208.83,6.66]
[1736263962403,0.12549,208.99,208.83,7.37790224]
[1736263962717,0.12549,208.99,208.88,0.12549]
[1736263962930,0.12549,208.99,208.9,23.902374]
[1736263963218,0.12549,208.99,208.9,0.12549]
[1736263963719,0.12549,208.99,208.88,0.71772212]
[1736263964093,0.12549,208.99,208.87,0.71776158]
[1736263964413,0.12549,208.99,208.88,0.84326832]
[1736263964795,0.12549,208.99,208.84,40.02494231]
[1736263964998,0.12549,208.99,208.83,0.71777638]
[1736263965213,0.12549,208.99,208.82,6.66]
[1736263965394,0.12549,208.99,208.8,43.83799783]
[1736263965715,0.12549,208.99,208.81,0.12549]
[1736263966019,0.12549,208.99,208.86,0.12549]
[1736263966322,0.12549,208.99,208.8,43.12]
[1736263966506,0.12549,208.95,208.8,43.12]
[1736263966821,20.0,208.94,208.8,43.12]
[1736263967022,0.12549,208.91,208.77,6.66]
[1736263967192,0.12549,208.91,208.79,0.12549]
[1736263967393,0.12549,208.91,208.79,23.902374]
[1736263967598,20.0,208.96,208.81,23.902374]
[1736263967805,0.12549,208.95,208.81,23.902374]
[1736263968130,0.12549,208.95,208.81,0.12549]
[1736263968314,0.12549,208.98,208.75,39.30712877]
[1736263968510,20.12549,208.94,208.76,0.71810655]
[1736263968828,20.12549,208.94,208.74,6.66]
[1736263969031,20.12549,208.94,208.75,0.12549]
[1736263969539,20.0,208.88,208.69,40.0253407]
[1736263969712,2.772,208.87,208.7,6.66]
[1736263970051,2.772,208.87,208.71,23.902374]
[1736263970205,2.772,208.87,208.73,63.20950277]
[1736263970406,2.772,208.87,208.75,0.12549]
[1736263971425,2.772,208.87,208.74,0.12549]
[1736263972138,2.772,208.87,208.71,0.12549]
[1736263972317,2.772,208.87,208.75,0.12549]
[1736263973016,2.772,208.87,208.72,39.30712877]
[1736263973234,2.772,208.87,208.78,23.902374]
[1736263973534,2.772,208.87,208.78,0.12549]
[1736263973734,2.772,208.87,208.74,0.71812655]
[1736263973946,2.772,208.87,208.73,39.30712877]
[1736263974123,2.772,208.87,208.76,63.20950277]
[1736263974444,2.772,208.87,208.78,39.43261877]
[1736263974643,2.772,208.87,208.8,0.12549]
[1736263974847,2.772,208.87,208.82,0.12549]
[1736263975352,10.56,208.93,208.81,39.43261877]
[1736263975641,10.56,208.93,208.82,23.902374]
[1736263975808,10.56,208.93,208.82,0.12549]
[1736263976231,20.0,208.9,208.73,6.66]
[1736263976741,5.0,208.87,208.65,6.66]
[1736263977238,20.0,208.83,208.63,0.71835624]
[1736263977443,20.0,208.79,208.61,49.78]
[1736263978352,20.0,208.75,208.55,40.02585404]
[1736263978865,20.0,208.75,208.57,39.30712877]
[1736263979050,20.0,208.75,208.58,0.12549]
[1736263979254,2.7076,208.78,208.61,39.30712877]
[1736263979436,2.7076,208.78,208.63,0.12549]
[1736263979948,7.7076,208.78,208.62,0.12549]
[1736263980553,7.7076,208.78,208.55,0.71884265]
[1736263980720,5.0,208.76,208.54,6.66]
[1736263980915,5.0,208.71,208.49,0.7189012]
[1736263981153,25.0,208.71,208.49,0.7189012]
[1736263981449,25.0,208.71,208.52,39.30712877]
[1736263981650,5.0,208.71,208.49,0.7189012]
[1736263981855,20.0,208.67,208.49,0.7189012]
[1736263982327,20.0,208.67,208.5,0.12549]
[1736263982926,20.0,208.67,208.5,39.43261877]
[1736263983137,13.6601,208.7,208.57,0.12549]
[1736263983437,13.6601,208.7,208.58,40.02595987]
[1736263983649,13.6601,208.7,208.54,40.02584382]
[1736263983966,13.6601,208.7,208.57,23.902374]
[1736263984169,13.6601,208.7,208.59,23.902374]
[1736263984459,13.6601,208.7,208.6,0.71879203]
[1736263984766,13.6601,208.7,208.56,39.30712877]
[1736263984941,13.6601,208.7,208.57,39.43261877]
[1736263985146,13.6601,208.7,208.6,0.12549]
[1736263985563,13.6601,208.7,208.59,0.12549]
[1736263985949,20.0,208.67,208.45,0.71903322]
[1736263986269,20.0,208.67,208.46,39.30712877]
[1736263986476,20.0,208.67,208.45,46.68616199]
[1736263986638,20.0,208.67,208.45,7.37903322]
[1736263986839,20.0,208.67,208.46,39.43261877]
[1736263987048,20.0,208.67,208.5,39.43261877]
[1736263987264,20.0,208.67,208.52,0.12549]
[1736263987845,20.0,208.67,208.51,23.902374]
[1736263988044,13.6601,208.7,208.55,0.12549]
[1736263988254,20.0,208.67,208.55,0.12549]
[1736263988574,13.6601,208.7,208.55,0.12549]
[1736263988575,27.3202,208.7,208.55,0.71894306]
[1736263988873,27.3202,208.7,208.53,40.02604775]
[1736263989057,20.0,208.67,208.54,0.12549]
[1736263989462,27.3202,208.7,208.41,48.14]
[1736263989463,20.0,208.66,208.43,45.90712877]
[1736263989668,20.0,208.66,208.44,40.02635892]
[1736263989862,5.0,208.69,208.48,39.30712877]
[1736263990198,27.3202,208.7,208.54,0.12549]
[1736263990374,27.3202,208.7,208.58,0.12549]
[1736263990956,16.5092,208.7,208.6,23.902374]
[1736263991163,2.6415,208.77,208.68,39.43261877]
[1736263991378,2.6415,208.77,208.7,0.12549]
[1736263991581,2.6415,208.77,208.76,0.12549]
[1736263991789,11.1793,208.85,208.76,39.30712877]
[1736263992096,11.3269,208.99,208.83,0.12549]
[1736263992273,5.0,208.97,208.83,0.12549]
[1736263992473,11.3269,208.99,208.83,0.12549]
[1736263992474,16.5092,208.88,208.83,0.12549]
[1736263992682,16.5092,208.88,208.68,39.30712877]
[1736263992869,16.5092,208.88,208.67,0.71828031]
[1736263992870,20.0,208.84,208.67,39.30712877]
[1736263993066,11.3269,208.87,208.76,0.12549]
[1736263993284,11.3269,208.87,208.79,0.12549]
[1736263993795,20.0,208.84,208.78,0.12549]
[1736263993994,6.94304267,209.0,208.78,0.71820785]
[1736263993995,11.0374,208.95,208.78,0.71820785]
[1736263994174,11.0374,208.95,208.76,39.30712877]
[1736263994372,19.175825,208.88,208.71,40.02532449]
[1736263994573,20.0,208.85,208.71,0.12549]
[1736263994782,20.0,208.85,208.7,39.30712877]
[1736263994783,2.7878,208.84,208.75,39.30712877]
[1736263994982,2.7878,208.84,208.81,0.12549]
[1736263995179,2.7878,208.94,208.84,0.12549]
[1736263995380,19.171342,208.93,208.84,0.12549]
[1736263995586,19.171342,208.93,208.86,39.30712877]
[1736263995884,2.7878,208.94,208.8,39.30712877]
[1736263995885,2.7878,208.94,208.91,0.12549]
[1736263996497,30.0,209.19,208.94,0.12549]
[1736263996498,2.8978,209.08,208.94,0.12549]
[1736263996701,22.8978,209.08,208.94,40.02470242]
[1736263997000,22.8978,209.08,208.95,0.12549]
[1736263997001,19.160398,209.06,208.95,0.12549]
[1736263997180,19.160398,209.06,208.95,40.15024043]
[1736263997379,19.160398,209.06,208.97,0.12549]
[1736263997715,10.7234,209.11,209.01,0.12549]
[1736263997716,1.92100097,209.11,209.01,0.12549]
[1736263997990,2.771,209.16,209.03,39.43261877]
[1736263998204,14.70383151,209.15,209.03,0.12549]
[1736263998369,19.154092,209.13,209.03,0.12549]
[1736263998568,19.154092,209.13,208.91,10.5263]
[1736263998569,20.0,209.1,208.92,0.71737245]
[1736263999205,20.0,209.1,208.9,0.71765708]
[1736263999504,20.0,209.09,208.9,0.71765708]
[1736263999703,13.9057,209.07,208.91,0.12549]
[1736264000007,20.0,209.04,208.91,0.12549]
[1736264000293,20.0,209.04,208.86,0.71785669]
[1736264000500,20.0,209.04,208.84,40.02500809]
[1736264000881,20.0,209.04,208.85,0.12549]
[1736264001092,20.0,209.04,208.84,40.02500809]
[1736264001093,20.0,209.04,208.87,39.43261877]
[1736264001426,20.0,209.03,208.89,0.12549]
[1736264001704,20.0,209.03,208.84,0.12549]
[1736264001904,25.0,209.04,208.86,0.12549]
[1736264002202,20.0,209.01,208.86,0.12549]
[1736264002372,2.8711,208.99,208.77,39.30712877]
[1736264002576,2.8711,208.99,208.82,39.30712877]
[1736264002792,2.8711,208.99,208.84,39.43261877]
[1736264002997,2.8711,208.99,208.86,0.12549]
[1736264003190,2.8711,208.99,208.88,0.12549]